fUSD/lending_fUSD_20260506
["ID","MTS","AMOUNT","RATE_DAILY","PERIOD"]
[421689955,1778043062000,-659.953,0.00034886,40]
[421689958,1778043062000,-151.0,0.00034997,14]
[421689954,1778043062000,-773.46239503,0.0003488,120]
[421689951,1778043062000,-177.07,0.00034521,120]
[421689962,1778043062000,-619.92683849,0.00035,120]
[421689965,1778043062000,-160.0,0.00035,30]
[421689966,1778043062000,-397.98147991,0.00035,120]
[421689963,1778043062000,-1620.04732435,0.00035,120]
[421689964,1778043062000,-160.0,0.00035,120]
[421689970,1778043062000,-3536.0,0.00035221,2]
[421689968,1778043062000,-598.0,0.00035221,2]
[421689973,1778043062000,-150.0,0.00035221,2]
[421689976,1778043062000,-150.0,0.00035221,2]
[421689972,1778043062000,-739.0,0.00035221,2]
[421689974,1778043062000,-417.0,0.00035221,2]
[421689956,1778043062000,-179.369,0.00034886,40]
[421690040,1778043063000,-1399.15477727,0.00037485,2]
[421690049,1778043063000,-1000.0,0.000378,7]
[421690050,1778043063000,-1000.0,0.000378,7]
[421690033,1778043063000,-295.0,0.00037272,30]
[421690030,1778043063000,-21766.67,0.00020548,2]
[421690036,1778043063000,-913.0,0.00037283,30]
[421690031,1778043063000,-131519.19386082,0.00037126,2]
[421690032,1778043063000,-500.0,0.00037173,5]
[421690034,1778043063000,-232.0,0.00037276,30]
[421690035,1778043063000,-296.0,0.00037276,30]
[421690041,1778043063000,-150.0,0.00037694,2]
[421690047,1778043063000,-1000.0,0.000378,7]
[421690042,1778043063000,-500.0,0.00037721,5]
[421690045,1778043063000,-1000.0,0.000378,7]
[421690046,1778043063000,-1000.0,0.000378,7]
[421690044,1778043063000,-1000.0,0.000378,7]
[421690048,1778043063000,-1000.0,0.000378,7]
[421690051,1778043063000,-1000.0,0.000378,7]
[421690053,1778043063000,-1000.0,0.000378,7]
[421690052,1778043063000,-1000.0,0.000378,7]
[421690055,1778043063000,-1000.0,0.000378,7]
[421690029,1778043063000,-508.53970426,0.00013698,2]
[421690062,1778043063000,-1000.0,0.000378,7]
[421690043,1778043063000,-1000.0,0.000378,7]
[421690009,1778043063000,-295.0,0.00036272,30]
[421690014,1778043063000,-299.0,0.00036283,30]
[421690037,1778043063000,-299.0,0.00037283,30]
[421690054,1778043063000,-1000.0,0.000378,7]
[421690004,1778043063000,-500.0,0.00036162,3]
[421690007,1778043063000,-1113.0,0.00036164,2]
[421690010,1778043063000,-161.28566167,0.00036272,30]
[421690011,1778043063000,-232.0,0.00036276,30]
[421690008,1778043063000,-356.0,0.00036164,2]
[421690006,1778043063000,-1002.0,0.00036164,2]
[421690005,1778043063000,-156.62894806,0.00036162,3]
[421690012,1778043063000,-296.0,0.00036276,30]
[421690013,1778043063000,-913.0,0.00036283,30]
[421690023,1778043063000,-4500.0,0.00037,2]
[421690018,1778043063000,-591.0,0.00036323,30]
[421690016,1778043063000,-150.0,0.00036301,30]
[421690022,1778043063000,-150.0,0.00036985,2]
[421690017,1778043063000,-348.95,0.00036301,120]
[421690021,1778043063000,-166.39269129,0.00036985,2]
[421690015,1778043063000,-394.0,0.00036283,30]
[421690020,1778043063000,-150.0,0.00036985,2]
[421690024,1778043063000,-4000.0,0.00037096,60]
[421690025,1778043063000,-375.23,0.00037105,30]
[421690026,1778043063000,-6283.3130587,0.00037126,2]
[421690027,1778043063000,-59672.29924008,0.00037126,2]
[421690038,1778043063000,-394.0,0.00037283,30]
[421690039,1778043063000,-591.0,0.00037323,30]
[421690056,1778043063000,-1000.0,0.000378,7]
[421690019,1778043063000,-152.0,0.00036983,8]
[421690059,1778043063000,-1000.0,0.000378,7]
[421690090,1778043063000,-763.0,0.000378,7]
[421690093,1778043063000,-1000.0,0.000378,7]
[421690094,1778043063000,-1000.0,0.000378,7]
[421690092,1778043063000,-1000.0,0.000378,7]
[421690087,1778043063000,-1000.0,0.000378,7]
[421690089,1778043063000,-1000.0,0.000378,7]
[421690097,1778043063000,-1000.0,0.000378,7]
[421690096,1778043063000,-1000.0,0.000378,7]
[421690095,1778043063000,-1000.0,0.000378,7]
[421690099,1778043063000,-1000.0,0.000378,7]
[421690098,1778043063000,-1000.0,0.000378,7]
[421690091,1778043063000,-1000.0,0.000378,7]
[421690100,1778043063000,-1000.0,0.000378,7]
[421690101,1778043063000,-1000.0,0.000378,7]
[421690102,1778043063000,-1000.0,0.000378,7]
[421690106,1778043063000,-1000.0,0.000378,7]
[421690105,1778043063000,-1000.0,0.000378,7]
[421690108,1778043063000,-1000.0,0.000378,7]
[421690107,1778043063000,-1000.0,0.000378,7]
[421690104,1778043063000,-1000.0,0.000378,7]
[421690110,1778043063000,-1000.0,0.000378,7]
[421690109,1778043063000,-1000.0,0.000378,7]
[421690111,1778043063000,-1000.0,0.000378,7]
[421690057,1778043063000,-1000.0,0.000378,7]
[421690103,1778043063000,-1000.0,0.000378,7]
[421690086,1778043063000,-1000.0,0.000378,7]
[421690028,1778043063000,-500.0,0.00013698,2]
[421690084,1778043063000,-1000.0,0.000378,7]
[421690061,1778043063000,-1000.0,0.000378,7]
[421690088,1778043063000,-1000.0,0.000378,7]
[421690058,1778043063000,-1000.0,0.000378,7]
[421690060,1778043063000,-1000.0,0.000378,7]
[421690063,1778043063000,-1000.0,0.000378,7]
[421690065,1778043063000,-1000.0,0.000378,7]
[421690064,1778043063000,-1000.0,0.000378,7]
[421690072,1778043063000,-1000.0,0.000378,7]
[421690068,1778043063000,-1000.0,0.000378,7]
[421690067,1778043063000,-1000.0,0.000378,7]
[421690073,1778043063000,-1000.0,0.000378,7]
[421690066,1778043063000,-1000.0,0.000378,7]
[421690070,1778043063000,-1000.0,0.000378,7]
[421690071,1778043063000,-1000.0,0.000378,7]
[421690075,1778043063000,-1000.0,0.000378,7]
[421690069,1778043063000,-1000.0,0.000378,7]
[421690085,1778043063000,-1000.0,0.000378,7]
[421690083,1778043063000,-1000.0,0.000378,7]
[421690079,1778043063000,-1000.0,0.000378,7]
[421690081,1778043063000,-1000.0,0.000378,7]
[421690076,1778043063000,-1000.0,0.000378,7]
[421690080,1778043063000,-1000.0,0.000378,7]
[421690077,1778043063000,-1000.0,0.000378,7]
[421690078,1778043063000,-1000.0,0.000378,7]
[421690074,1778043063000,-1000.0,0.000378,7]
[421690082,1778043063000,-1000.0,0.000378,7]
[421690151,1778043064000,-300.0,0.00038318,2]
[421690147,1778043064000,-300.0,0.00038318,2]
[421690150,1778043064000,-300.0,0.00038318,2]
[421690156,1778043064000,-300.0,0.00038318,2]
[421690154,1778043064000,-300.0,0.00038318,2]
[421690140,1778043064000,-5287.0,0.00038221,2]
[421690152,1778043064000,-1092.83356842,0.00038318,2]
[421690153,1778043064000,-300.0,0.00038318,2]
[421690148,1778043064000,-300.0,0.00038318,2]
[421690145,1778043064000,-10000.0,0.00038276,2]
[421690146,1778043064000,-300.0,0.00038318,2]
[421690157,1778043064000,-300.0,0.00038318,2]
[421690149,1778043064000,-300.0,0.00038318,2]
[421690163,1778043064000,-300.0,0.00038318,2]
[421690159,1778043064000,-300.0,0.00038318,2]
[421690169,1778043064000,-300.0,0.00038318,2]
[421690160,1778043064000,-300.0,0.00038318,2]
[421690161,1778043064000,-300.0,0.00038318,2]
[421690170,1778043064000,-300.0,0.00038318,2]
[421690158,1778043064000,-300.0,0.00038318,2]
[421690162,1778043064000,-300.0,0.00038318,2]
[421690168,1778043064000,-300.0,0.00038318,2]
[421690167,1778043064000,-300.0,0.00038318,2]
[421690164,1778043064000,-300.0,0.00038318,2]
[421690165,1778043064000,-300.0,0.00038318,2]
[421690142,1778043064000,-3829.52083592,0.00038252,5]
[421690166,1778043064000,-491.85958444,0.00038318,2]
[421690155,1778043064000,-300.0,0.00038318,2]
[421690141,1778043064000,-273.57048514,0.00038231,2]
[421690128,1778043064000,-2127.42212672,0.00038018,120]
[421690143,1778043064000,-4895.92519328,0.00038253,5]
[421690120,1778043064000,-1000.0,0.000378,7]
[421690113,1778043064000,-1000.0,0.000378,7]
[421690112,1778043064000,-1000.0,0.000378,7]
[421690118,1778043064000,-1000.0,0.000378,7]
[421690116,1778043064000,-1000.0,0.000378,7]
[421690119,1778043064000,-1000.0,0.000378,7]
[421690117,1778043064000,-1000.0,0.000378,7]
[421690115,1778043064000,-1000.0,0.000378,7]
[421690122,1778043064000,-348.95,0.00037863,120]
[421690132,1778043064000,-598.0,0.00038221,2]
[421690121,1778043064000,-1000.0,0.000378,7]
[421690130,1778043064000,-557.0,0.00038081,2]
[421690123,1778043064000,-20207.64480729,0.0003789,7]
[421690131,1778043064000,-538.9366409,0.000381,33]
[421690126,1778043064000,-160.0,0.00038,7]
[421690124,1778043064000,-2600.0,0.000379,13]
[421690171,1778043064000,-603.45144378,0.00038318,2]
[421690129,1778043064000,-5686.34352384,0.00038059,2]
[421690127,1778043064000,-150.0,0.00038,2]
[421690125,1778043064000,-275.91,0.00038,30]
[421690133,1778043064000,-539.0,0.00038221,2]
[421690136,1778043064000,-739.0,0.00038221,2]
[421690135,1778043064000,-1014.0,0.00038221,2]
[421690137,1778043064000,-417.0,0.00038221,2]
[421690144,1778043064000,-1156.33452825,0.00038253,5]
[421690139,1778043064000,-150.0,0.00038221,2]
[421690134,1778043064000,-3536.0,0.00038221,2]
[421690138,1778043064000,-150.0,0.00038221,2]
[421690173,1778043064000,-300.0,0.00038318,2]
[421690114,1778043064000,-1000.0,0.000378,7]
[421690174,1778043064000,-300.0,0.00038318,2]
[421690205,1778043064000,-1805.51200897,0.00038318,2]
[421690220,1778043064000,-300.0,0.00038318,2]
[421690219,1778043064000,-300.0,0.00038318,2]
[421690209,1778043064000,-310.3725982,0.00038318,2]
[421690208,1778043064000,-300.0,0.00038318,2]
[421690210,1778043064000,-300.0,0.00038318,2]
[421690214,1778043064000,-481.18706949,0.00038318,2]
[421690217,1778043064000,-300.0,0.00038318,2]
[421690211,1778043064000,-300.0,0.00038318,2]
[421690213,1778043064000,-463.08064867,0.00038318,2]
[421690215,1778043064000,-300.0,0.00038318,2]
[421690212,1778043064000,-300.0,0.00038318,2]
[421690216,1778043064000,-451.13853711,0.00038318,2]
[421690207,1778043064000,-300.0,0.00038318,2]
[421690218,1778043064000,-300.0,0.00038318,2]
[421690233,1778043064000,-300.0,0.00038318,2]
[421690232,1778043064000,-300.0,0.00038318,2]
[421690223,1778043064000,-300.0,0.00038318,2]
[421690221,1778043064000,-300.0,0.00038318,2]
[421690225,1778043064000,-300.0,0.00038318,2]
[421690224,1778043064000,-309.32134718,0.00038318,2]
[421690227,1778043064000,-300.0,0.00038318,2]
[421690226,1778043064000,-300.0,0.00038318,2]
[421690229,1778043064000,-300.0,0.00038318,2]
[421690231,1778043064000,-345.80121438,0.00038318,2]
[421690228,1778043064000,-300.0,0.00038318,2]
[421690234,1778043064000,-300.0,0.00038318,2]
[421690183,1778043064000,-301.2859328,0.00038318,2]
[421690222,1778043064000,-483.27319916,0.00038318,2]
[421690200,1778043064000,-1145.24599896,0.00038318,2]
[421690230,1778043064000,-1092.83356842,0.00038318,2]
[421690201,1778043064000,-309.07064608,0.00038318,2]
[421690206,1778043064000,-300.0,0.00038318,2]
[421690182,1778043064000,-300.0,0.00038318,2]
[421690172,1778043064000,-300.0,0.00038318,2]
[421690175,1778043064000,-526.86051061,0.00038318,2]
[421690179,1778043064000,-312.45081026,0.00038318,2]
[421690177,1778043064000,-1065.13491717,0.00038318,2]
[421690181,1778043064000,-724.83131769,0.00038318,2]
[421690180,1778043064000,-309.13065885,0.00038318,2]
[421690178,1778043064000,-891.9241332,0.00038318,2]
[421690186,1778043064000,-300.06118393,0.00038318,2]
[421690184,1778043064000,-300.0,0.00038318,2]
[421690188,1778043064000,-300.0,0.00038318,2]
[421690185,1778043064000,-300.0,0.00038318,2]
[421690187,1778043064000,-505.76530163,0.00038318,2]
[421690176,1778043064000,-300.0,0.00038318,2]
[421690190,1778043064000,-300.0,0.00038318,2]
[421690189,1778043064000,-300.0,0.00038318,2]
[421690204,1778043064000,-300.0,0.00038318,2]
[421690198,1778043064000,-300.0,0.00038318,2]
[421690199,1778043064000,-300.0,0.00038318,2]
[421690196,1778043064000,-300.0,0.00038318,2]
[421690202,1778043064000,-300.0,0.00038318,2]
[421690203,1778043064000,-862.96230178,0.00038318,2]
[421690195,1778043064000,-1793.38851355,0.00038318,2]
[421690192,1778043064000,-300.0,0.00038318,2]
[421690194,1778043064000,-300.0,0.00038318,2]
[421690191,1778043064000,-368.41858601,0.00038318,2]
[421690197,1778043064000,-343.40295571,0.00038318,2]
[421690193,1778043064000,-852.7601399,0.00038318,2]
[421690268,1778043065000,-300.0,0.00038318,2]
[421690262,1778043065000,-300.0,0.00038318,2]
[421690267,1778043065000,-300.0,0.00038318,2]
[421690261,1778043065000,-301.2859328,0.00038318,2]
[421690266,1778043065000,-300.0,0.00038318,2]
[421690270,1778043065000,-852.7601399,0.00038318,2]
[421690269,1778043065000,-300.0,0.00038318,2]
[421690265,1778043065000,-505.76530163,0.00038318,2]
[421690264,1778043065000,-300.06118393,0.00038318,2]
[421690263,1778043065000,-300.0,0.00038318,2]
[421690276,1778043065000,-300.0,0.00038318,2]
[421690271,1778043065000,-1793.38851355,0.00038318,2]
[421690273,1778043065000,-300.0,0.00038318,2]
[421690274,1778043065000,-343.40295571,0.00038318,2]
[421690279,1778043065000,-300.0,0.00038318,2]
[421690275,1778043065000,-300.0,0.00038318,2]
[421690280,1778043065000,-862.96230178,0.00038318,2]
[421690278,1778043065000,-309.07064608,0.00038318,2]
[421690277,1778043065000,-1145.24599896,0.00038318,2]
[421690255,1778043065000,-300.0,0.00038318,2]
[421690283,1778043065000,-300.0,0.00038318,2]
[421690272,1778043065000,-300.0,0.00038318,2]
[421690257,1778043065000,-891.9241332,0.00038318,2]
[421690244,1778043065000,-491.85958444,0.00038318,2]
[421690256,1778043065000,-1065.13491717,0.00038318,2]
[421690281,1778043065000,-300.0,0.00038318,2]
[421690235,1778043065000,-300.0,0.00038318,2]
[421690245,1778043065000,-300.0,0.00038318,2]
[421690246,1778043065000,-300.0,0.00038318,2]
[421690240,1778043065000,-300.0,0.00038318,2]
[421690237,1778043065000,-300.0,0.00038318,2]
[421690241,1778043065000,-300.0,0.00038318,2]
[421690239,1778043065000,-300.0,0.00038318,2]
[421690238,1778043065000,-300.0,0.00038318,2]
[421690236,1778043065000,-300.0,0.00038318,2]
[421690251,1778043065000,-300.0,0.00038318,2]
[421690242,1778043065000,-300.0,0.00038318,2]
[421690248,1778043065000,-300.0,0.00038318,2]
[421690258,1778043065000,-309.13065885,0.00038318,2]
[421690259,1778043065000,-724.83131769,0.00038318,2]
[421690260,1778043065000,-300.0,0.00038318,2]
[421690249,1778043065000,-300.0,0.00038318,2]
[421690247,1778043065000,-300.0,0.00038318,2]
[421690250,1778043065000,-603.45144378,0.00038318,2]
[421690254,1778043065000,-526.86051061,0.00038318,2]
[421690252,1778043065000,-300.0,0.00038318,2]
[421690253,1778043065000,-300.0,0.00038318,2]
[421690243,1778043065000,-300.0,0.00038318,2]
[421690284,1778043065000,-300.0,0.00038318,2]
[421690282,1778043065000,-300.0,0.00038318,2]
[421690285,1778043065000,-310.3725982,0.00038318,2]
[421690315,1778043065000,-160.38,0.00038356,30]
[421690314,1778043065000,-150.0,0.00038356,120]
[421690316,1778043065000,-1100.0,0.00038356,2]
[421690317,1778043065000,-1100.0,0.00038356,2]
[421690318,1778043065000,-1054.0,0.00038356,2]
[421690321,1778043065000,-899.0,0.00038356,2]
[421690324,1778043065000,-156.48951136,0.0003836,120]
[421690323,1778043065000,-328.0,0.00038356,2]
[421690322,1778043065000,-1859.0,0.00038356,2]
[421690319,1778043065000,-1000.0,0.00038356,2]
[421690309,1778043065000,-210.1366791,0.00038319,120]
[421690320,1778043065000,-1000.0,0.00038356,2]
[421690327,1778043065000,-152.14169922,0.00038366,120]
[421690328,1778043065000,-156.40820005,0.00038366,120]
[421690329,1778043065000,-152.14169922,0.00038366,120]
[421690331,1778043065000,-250.0,0.00038382,7]
[421690332,1778043065000,-250.0,0.00038382,7]
[421690333,1778043065000,-250.0,0.00038382,7]
[421690330,1778043065000,-156.40820005,0.00038366,120]
[421690334,1778043065000,-152.0,0.00038401,9]
[421690335,1778043065000,-500.0,0.00038494,120]
[421690286,1778043065000,-300.0,0.00038318,2]
[421690325,1778043065000,-156.40820005,0.00038366,120]
[421690307,1778043065000,-543.0073538,0.00038319,120]
[421690326,1778043065000,-152.14169922,0.00038366,120]
[421690305,1778043065000,-186.745947,0.00038319,120]
[421690288,1778043065000,-463.08064867,0.00038318,2]
[421690308,1778043065000,-167.712984,0.00038319,120]
[421690287,1778043065000,-300.0,0.00038318,2]
[421690289,1778043065000,-300.0,0.00038318,2]
[421690291,1778043065000,-300.0,0.00038318,2]
[421690293,1778043065000,-300.0,0.00038318,2]
[421690290,1778043065000,-481.18706949,0.00038318,2]
[421690292,1778043065000,-451.13853711,0.00038318,2]
[421690297,1778043065000,-300.0,0.00038318,2]
[421690295,1778043065000,-300.0,0.00038318,2]
[421690299,1778043065000,-483.27319916,0.00038318,2]
[421690294,1778043065000,-300.0,0.00038318,2]
[421690313,1778043065000,-150.5,0.00038351,2]
[421690298,1778043065000,-300.0,0.00038318,2]
[421690300,1778043065000,-309.32134718,0.00038318,2]
[421690303,1778043065000,-159.2064289,0.00038319,120]
[421690312,1778043065000,-707.3242,0.00038346,120]
[421690302,1778043065000,-158.4902185,0.00038319,120]
[421690311,1778043065000,-707.3242,0.00038346,120]
[421690301,1778043065000,-300.0,0.00038318,2]
[421690310,1778043065000,-707.3242,0.00038346,120]
[421690304,1778043065000,-801.0937155,0.00038319,120]
[421690306,1778043065000,-189.1331068,0.00038319,120]
[421690296,1778043065000,-300.0,0.00038318,2]
[421690405,1778043066000,-184.59,0.0004059,120]
[421690413,1778043066000,-9049.66220945,0.000408,60]
[421690402,1778043066000,-573.36,0.00040544,120]
[421690398,1778043066000,-200.0,0.000405,20]
[421690406,1778043066000,-153.56,0.0004059,120]
[421690407,1778043066000,-567.892534,0.00040594,120]
[421690412,1778043066000,-4000.0,0.00040795,60]
[421690409,1778043066000,-156.48951136,0.00040683,120]
[421690411,1778043066000,-176.3,0.0004075,120]
[421690410,1778043066000,-719.72,0.00040726,120]
[421690408,1778043066000,-719.72,0.00040626,120]
[421690414,1778043066000,-275.91,0.000408,30]
[421690401,1778043066000,-719.72,0.00040526,120]
[421690416,1778043066000,-2467.771,0.000408,120]
[421690397,1778043066000,-11401.42,0.000405,120]
[421690388,1778043066000,-22308.51,0.0004029,60]
[421690396,1778043066000,-92606.11498224,0.00040484,2]
[421690386,1778043066000,-719.72,0.00040226,120]
[421690383,1778043066000,-250.0,0.00040077,70]
[421690384,1778043066000,-719.72,0.00040126,120]
[421690385,1778043066000,-2037.4656,0.00040132,2]
[421690389,1778043066000,-241.12,0.0004029,60]
[421690415,1778043066000,-2467.771,0.000408,120]
[421690400,1778043066000,-10000.0,0.00040515,4]
[421690387,1778043066000,-2037.4667,0.00040269,2]
[421690404,1778043066000,-250.0,0.00040562,78]
[421690403,1778043066000,-152.14169922,0.00040558,120]
[421690392,1778043066000,-719.72,0.00040326,120]
[421690395,1778043066000,-7548.36381456,0.00040445,2]
[421690394,1778043066000,-163.0,0.00040427,11]
[421690399,1778043066000,-2000.0,0.00040515,4]
[421690393,1778043066000,-719.72,0.00040426,120]
[421690428,1778043066000,-500.0,0.00040822,60]
[421690440,1778043066000,-423.0,0.00040822,60]
[421690417,1778043066000,-2467.77,0.000408,120]
[421690439,1778043066000,-537.0,0.00040822,60]
[421690438,1778043066000,-500.0,0.00040822,60]
[421690434,1778043066000,-423.0,0.00040822,60]
[421690442,1778043066000,-537.0,0.00040822,60]
[421690445,1778043066000,-500.0,0.00040822,60]
[421690449,1778043066000,-500.0,0.00040822,60]
[421690436,1778043066000,-537.0,0.00040822,60]
[421690451,1778043066000,-423.0,0.00040822,60]
[421690447,1778043066000,-423.0,0.00040822,60]
[421690450,1778043066000,-537.0,0.00040822,60]
[421690443,1778043066000,-423.0,0.00040822,60]
[421690446,1778043066000,-537.0,0.00040822,60]
[421690452,1778043066000,-150.0,0.00040822,30]
[421690382,1778043066000,-163.0,0.00040052,11]
[421690448,1778043066000,-150.0,0.00040822,60]
[421690419,1778043066000,-188.54851579,0.00040822,60]
[421690437,1778043066000,-423.0,0.00040822,60]
[421690432,1778043066000,-500.0,0.00040822,60]
[421690422,1778043066000,-537.0,0.00040822,60]
[421690418,1778043066000,-150.0,0.00040822,60]
[421690420,1778043066000,-537.0,0.00040822,60]
[421690423,1778043066000,-537.0,0.00040822,60]
[421690424,1778043066000,-423.0,0.00040822,60]
[421690427,1778043066000,-423.0,0.00040822,60]
[421690435,1778043066000,-500.0,0.00040822,60]
[421690426,1778043066000,-500.0,0.00040822,60]
[421690425,1778043066000,-537.0,0.00040822,60]
[421690429,1778043066000,-537.0,0.00040822,60]
[421690430,1778043066000,-517.59719864,0.00040822,60]
[421690441,1778043066000,-500.0,0.00040822,60]
[421690431,1778043066000,-423.0,0.00040822,60]
[421690433,1778043066000,-537.0,0.00040822,60]
[421690421,1778043066000,-537.0,0.00040822,60]
[421690444,1778043066000,-150.0,0.00040822,60]
[421690381,1778043066000,-719.72,0.00040026,120]
[421690391,1778043066000,-156.48951136,0.00040296,120]
[421690356,1778043066000,-150.0,0.000395,120]
[421690351,1778043066000,-155.1198,0.0003931,2]
[421690349,1778043066000,-150.0,0.0003925,120]
[421690350,1778043066000,-2000.0,0.000393,7]
[421690357,1778043066000,-156.48951136,0.00039521,120]
[421690354,1778043066000,-250.0,0.00039496,61]
[421690353,1778043066000,-152.14169922,0.00039462,120]
[421690347,1778043066000,-156.48951136,0.00039134,120]
[421690348,1778043066000,-275.91,0.000392,30]
[421690352,1778043066000,-166.1,0.00039437,2]
[421690341,1778043066000,-4000.0,0.00038932,60]
[421690338,1778043066000,-7448.02400435,0.00038622,2]
[421690340,1778043066000,-451.94890879,0.00038811,2]
[421690337,1778043066000,-313.025939,0.000385,16]
[421690345,1778043066000,-22411.78,0.00039,7]
[421690339,1778043066000,-156.48951136,0.00038747,120]
[421690342,1778043066000,-4000.0,0.00038932,60]
[421690343,1778043066000,-150.0,0.00039,2]
[421690336,1778043066000,-190.07893127,0.000385,120]
[421690390,1778043066000,-285.6,0.0004029,60]
[421690344,1778043066000,-150.0,0.00039,120]
[421690355,1778043066000,-238156.96341543,0.000395,2]
[421690346,1778043066000,-160.0,0.000391,7]
[421690361,1778043066000,-2037.4656,0.00039721,2]
[421690359,1778043066000,-2037.4656,0.00039584,2]
[421690378,1778043066000,-157.0,0.0004,120]
[421690375,1778043066000,-183.891444,0.0004,2]
[421690374,1778043066000,-514.84594503,0.0004,2]
[421690377,1778043066000,-173.25,0.0004,2]
[421690376,1778043066000,-191.57205511,0.0004,120]
[421690372,1778043066000,-319.12528642,0.0004,2]
[421690373,1778043066000,-336.11527038,0.0004,3]
[421690371,1778043066000,-349.99248221,0.0004,3]
[421690369,1778043066000,-2037.4656,0.00039995,2]
[421690379,1778043066000,-157.0,0.0004,120]
[421690380,1778043066000,-156.40820005,0.0004001,120]
[421690367,1778043066000,-156.48951136,0.00039908,120]
[421690368,1778043066000,-719.72,0.00039926,120]
[421690365,1778043066000,-375.23,0.00039845,30]
[421690366,1778043066000,-2037.4656,0.00039858,2]
[421690364,1778043066000,-719.72,0.00039826,120]
[421690363,1778043066000,-152.0,0.00039818,10]
[421690358,1778043066000,-150.0,0.00039579,2]
[421690362,1778043066000,-288.67295677,0.0003975,120]
[421690370,1778043066000,-6475.7775336,0.0004,120]
[421690360,1778043066000,-667.37,0.00039692,2]
[421690494,1778043067000,-500.0,0.00040822,60]
[421690490,1778043067000,-150.0,0.00040822,60]
[421690493,1778043067000,-500.0,0.00040822,60]
[421690501,1778043067000,-150.0,0.00040822,60]
[421690502,1778043067000,-150.0,0.00040822,60]
[421690487,1778043067000,-446.25809725,0.00040822,60]
[421690485,1778043067000,-423.0,0.00040822,60]
[421690481,1778043067000,-423.0,0.00040822,60]
[421690486,1778043067000,-540.23170004,0.00040822,60]
[421690492,1778043067000,-500.0,0.00040822,60]
[421690482,1778043067000,-537.0,0.00040822,60]
[421690491,1778043067000,-500.0,0.00040822,60]
[421690497,1778043067000,-500.0,0.00040822,60]
[421690505,1778043067000,-500.0,0.00040822,60]
[421690499,1778043067000,-500.0,0.00040822,60]
[421690495,1778043067000,-500.0,0.00040822,60]
[421690496,1778043067000,-500.0,0.00040822,60]
[421690498,1778043067000,-500.0,0.00040822,60]
[421690504,1778043067000,-150.0,0.00040822,60]
[421690503,1778043067000,-500.0,0.00040822,60]
[421690506,1778043067000,-200.0,0.00040822,60]
[421690509,1778043067000,-150.0,0.00040822,60]
[421690508,1778043067000,-500.0,0.00040822,60]
[421690514,1778043067000,-500.0,0.00040822,60]
[421690507,1778043067000,-500.0,0.00040822,60]
[421690483,1778043067000,-423.0,0.00040822,60]
[421690500,1778043067000,-413.07705754,0.00040822,60]
[421690480,1778043067000,-537.0,0.00040822,60]
[421690459,1778043067000,-500.0,0.00040822,60]
[421690477,1778043067000,-423.0,0.00040822,60]
[421690453,1778043067000,-166.38904159,0.00040822,60]
[421690454,1778043067000,-537.0,0.00040822,60]
[421690455,1778043067000,-423.0,0.00040822,60]
[421690463,1778043067000,-234.2455945,0.00040822,30]
[421690457,1778043067000,-537.0,0.00040822,60]